[Event "Groningen Festival 2019-B"]
[Site "Groningen"]
[Date "2019.12.30"]
[Round "9.4"]
[White "Muller, Kenneth"]
[Black "Neuendorf, Max"]
[Result "1/2-1/2"]
[ECO "B13"]
[WhiteElo "1806"]
[BlackElo "1994"]
[Annotator "NA"]
[PlyCount "89"]
[EventDate "2019.12.15"]
[EventType "swiss"]
[EventCountry "NED"]
[SourceTitle "playchess.com"]
[Source "ChessBase"]
[SourceQuality "1"]
[TimeControl "40/5400+30:1800+30"]

1. d4 {[%emt 0:00:00]} d5 {[%emt 0:00:39]} 2. Nc3 {[%emt 0:00:00]} Nf6 {[%emt 0:00:22]} 3. Bf4 {[%emt 0:00:00]} c5 {[%emt 0:00:21]} 4. e3 {[%emt 0:00:15]} cxd4 {[%emt 0:00:25]} 5. exd4 {[%emt 0:00:08]} a6 {[%emt 0:00:07]} 6. Nf3 {[%emt 0:00:14]} Nc6 {[%emt 0:00:12]} 7. Ne5 {[%emt 0:01:21]} Qb6 {[%emt 0:03:31]} 8. Na4 {[%emt 0:07:07]} Qa5+ {[%emt 0:06:07]} 9. c3 {[%emt 0:00:19]} e6 {[%emt 0:05:13]} 10. Nxc6 {[%emt 0:08:40]} bxc6 {[%emt 0:00:09]} 11. Bd3 {[%emt 0:00:42]} Be7 {[%emt 0:08:21]} 12. O-O {[%emt 0:03:03]} O-O {[%emt 0:00:23]} 13. Re1 {[%emt 0:03:21]} Re8 {[%emt 0:23:31]} 14. b4 {[%emt 0:07:55]} Qd8 {[%emt 0:00:14]} 15. Nc5 {[%emt 0:00:58]} Nd7 {[%emt 0:05:43]} 16. Qh5 {[%emt 0:07:33]} g6 {[%emt 0:08:04]} 17. Nxe6 {[%emt 0:13:09]} fxe6 {[%emt 0:13:25]} 18. Bxg6 {[%emt 0:02:08]} Nf6 {[%emt 0:03:31]} 19. Bf7+ {[%emt 0:04:33]} Kh8 {[%emt 0:00:06]} 20. Be5 {[%emt 0:00:29]} Rg8 {[%emt 0:02:01]} 21. Bxg8 {[%emt 0:08:10]} Kxg8 {[%emt 0:00:02]} 22. Qg5+ {[%emt 0:00:57]} Kf7 {[%emt 0:00:35]} 23. Re3 {[%emt 0:03:46]} Qg8 {[%emt 0:02:15]} 24. Qf4 {[%emt 0:01:46]} Qg4 {[%emt 0:02:18]} 25. Qh6 {[%emt 0:01:13]} Qh5 {[%emt 0:01:57]} 26. Qxh5+ {[%emt 0:04:12]} Nxh5 {[%emt 0:00:02]} 27. Rh3 {[%emt 0:00:13]} Kg6 {[%emt 0:00:14]} 28. Rd1 {[%emt 0:00:32]} a5 {[%emt 0:01:15]} 29. a3 {[%emt 0:01:42]} axb4 {[%emt 0:00:13]} 30. cxb4 {[%emt 0:00:21]} Ba6 {[%emt 0:00:29]} 31. Rc1 {[%emt 0:01:15]} Bc4 {[%emt 0:00:45]} 32. g4 {[%emt 0:03:20]} Nf6 {[%emt 0:01:00]} 33. f3 {[%emt 0:01:43]} Rxa3 {[%emt 0:00:10]} 34. Kg2 {[%emt 0:04:57]} Rb3 {[%emt 0:02:39]} 35. Bxf6 {[%emt 0:00:41]} Bxf6 {[%emt 0:00:11]} 36. Re1 {[%emt 0:00:48]} Rb2+ {[%emt 0:02:41]} 37. Kg3 {[%emt 0:01:14]} Be2 {[%emt 0:04:55]} 38. Rc1 {[%emt 0:02:30]} Bxd4 {[%emt 0:01:14]} 39. Rxc6 {[%emt 0:00:56]} Be5+ {[%emt 0:01:03]} 40. f4 {[%emt 0:05:06]} Bd4 {[%emt 0:02:43]} 41. f5+ {[%emt 0:31:54]} Kg7 {[%emt 0:03:10]} 42. Rc7+ {[%emt 0:00:00]} Kg8 {[%emt 0:03:46]} 43. Rc8+ {[%emt 0:00:00]} Kg7 {[%emt 0:00:24]} 44. Rc7+ {[%emt 0:00:00]} Kg8 {[%emt 0:00:08]} 45. Rc8+ {[%emt 0:00:00]} 1/2-1/2

[Event "Groningen Festival 2019-B"]
[Site "Groningen"]
[Date "2019.12.30"]
[Round "9.5"]
[White "Salihbegovic, Edim"]
[Black "De Winter, Arthur"]
[Result "1-0"]
[ECO "A16"]
[WhiteElo "2011"]
[BlackElo "1932"]
[Annotator "NA"]
[PlyCount "115"]
[EventDate "2019.12.15"]
[EventType "swiss"]
[EventCountry "NED"]
[SourceTitle "playchess.com"]
[Source "ChessBase"]
[SourceQuality "1"]
[TimeControl "40/5400+30:1800+30"]

1. c4 {[%emt 0:00:00]} Nf6 {[%emt 0:00:00]} 2. g3 {[%emt 0:00:00]} g6 {[%emt 0:00:00]} 3. Bg2 {[%emt 0:00:00]} Bg7 {[%emt 0:00:03]} 4. Nc3 {[%emt 0:00:00]} O-O {[%emt 0:00:08]} 5. d3 {[%emt 0:00:13]} d6 {[%emt 0:00:38]} 6. Bg5 {[%emt 0:00:30]} Nbd7 {[%emt 0:01:01]} 7. Qd2 {[%emt 0:00:11]} c6 {[%emt 0:00:45]} 8. Bh6 {[%emt 0:00:06]} Bxh6 {[%emt 0:03:41]} 9. Qxh6 {[%emt 0:00:05]} Qb6 {[%emt 0:01:26]} 10. Qd2 {[%emt 0:00:17]} e5 {[%emt 0:00:40]} 11. e4 {[%emt 0:00:40]} Nc5 {[%emt 0:01:34]} 12. Nge2 {[%emt 0:00:29]} a5 {[%emt 0:05:06]} 13. Rb1 {[%emt 0:01:56]} Bd7 {[%emt 0:04:48]} 14. b3 {[%emt 0:05:28]} Qc7 {[%emt 0:10:32]} 15. O-O {[%emt 0:01:25]} b5 {[%emt 0:00:17]} 16. cxb5 {[%emt 0:01:22]} cxb5 {[%emt 0:00:06]} 17. Rbc1 {[%emt 0:02:31]} b4 {[%emt 0:04:27]} 18. Nd5 {[%emt 0:01:03]} Nxd5 {[%emt 0:01:59]} 19. exd5 {[%emt 0:00:04]} Bb5 {[%emt 0:05:26]} 20. Rfd1 {[%emt 0:11:10]} Qa7 {[%emt 0:00:45]} 21. d4 {[%emt 0:05:44]} Bxe2 {[%emt 0:00:15]} 22. Qxe2 {[%emt 0:00:47]} exd4 {[%emt 0:00:02]} 23. Qc4 {[%emt 0:02:01]} a4 {[%emt 0:12:35]} 24. Qxb4 {[%emt 0:09:14]} axb3 {[%emt 0:01:10]} 25. axb3 {[%emt 0:00:36]} Qa2 {[%emt 0:15:09]} 26. Rxc5 {[%emt 0:04:21]} dxc5 {[%emt 0:00:47]} 27. Qxc5 {[%emt 0:00:07]} d3 {[%emt 0:02:56]} 28. Qc3 {[%emt 0:13:43]} Ra3 {[%emt 0:10:31]} 29. Qxd3 {[%emt 0:01:52]} Rxb3 {[%emt 0:00:07]} 30. Qd4 {[%emt 0:02:39]} Rb1 {[%emt 0:01:53]} 31. Bf3 {[%emt 0:02:24]} Rxd1+ {[%emt 0:01:07]} 32. Qxd1 {[%emt 0:00:28]} Rd8 {[%emt 0:01:35]} 33. Qd4 {[%emt 0:00:38]} Qa3 {[%emt 0:01:09]} 34. Kg2 {[%emt 0:00:17]} Qd6 {[%emt 0:00:05]} 35. h4 {[%emt 0:00:27]} h5 {[%emt 0:00:14]} 36. Qc3 {[%emt 0:01:17]} Qe7 {[%emt 0:00:25]} 37. Qc6 {[%emt 0:01:33]} Rd6 {[%emt 0:01:27]} 38. Qc5 {[%emt 0:00:25]} Qf6 {[%emt 0:00:32]} 39. Qb5 {[%emt 0:01:12]} Rb6 {[%emt 0:00:19]} 40. Qd3 {[%emt 0:01:08]} Qd6 {[%emt 0:01:31]} 41. Qe3 {[%emt 0:30:20]} Rb2 {[%emt 0:30:40]} 42. Qe8+ {[%emt 0:05:01]} Kg7 {[%emt 0:00:06]} 43. Qe1 {[%emt 0:01:32]} Qf6 {[%emt 0:00:35]} 44. Qe3 {[%emt 0:00:24]} Rb6 {[%emt 0:00:46]} 45. Qd3 {[%emt 0:01:23]} Kg8 {[%emt 0:01:08]} 46. Qe3 {[%emt 0:00:16]} Rb2 {[%emt 0:00:48]} 47. Qe8+ {[%emt 0:00:45]} Kg7 {[%emt 0:00:05]} 48. Qe3 {[%emt 0:00:08]} Kh7 {[%emt 0:02:03]} 49. Qd3 {[%emt 0:00:22]} Qb6 {[%emt 0:00:22]} 50. Be2 {[%emt 0:00:26]} Qf6 {[%emt 0:01:29]} 51. Bf3 {[%emt 0:02:04]} Kg7 {[%emt 0:04:48]} 52. Qe3 {[%emt 0:03:38]} Rb6 {[%emt 0:00:27]} 53. Qd3 {[%emt 0:00:29]} Kg8 {[%emt 0:02:03]} 54. Qe3 {[%emt 0:00:17]} Rd6 {[%emt 0:00:32]} 55. Qe8+ {[%emt 0:00:14]} Kg7 {[%emt 0:00:04]} 56. Qe3 {[%emt 0:00:13]} Ra6 {[%emt 0:00:28]} 57. Qd3 {[%emt 0:01:37]} Qe5 {[%emt 0:02:25]} 58. Qxa6 {[%emt 0:00:13]} 1-0

[Event "Groningen Festival 2019-B"]
[Site "Groningen"]
[Date "2019.12.30"]
[Round "9.6"]
[White "Labruyere, Roger"]
[Black "Pellikaan, Govert"]
[Result "1-0"]
[ECO "D02"]
[WhiteElo "1933"]
[BlackElo "1984"]
[Annotator "NA"]
[PlyCount "59"]
[EventDate "2019.12.15"]
[EventType "swiss"]
[EventCountry "NED"]
[SourceTitle "playchess.com"]
[Source "ChessBase"]
[SourceQuality "1"]
[TimeControl "40/5400+30:1800+30"]

1. d4 {[%emt 0:00:04]} Nf6 {[%emt 0:00:00]} 2. Nf3 {[%emt 0:00:07]} g6 {[%emt 0:00:00]} 3. g3 {[%emt 0:00:03]} c6 {[%emt 0:00:19]} 4. Bg2 {[%emt 0:00:36]} d5 {[%emt 0:00:24]} 5. O-O {[%emt 0:00:36]} Bg7 {[%emt 0:00:03]} 6. b3 {[%emt 0:00:37]} Bf5 {[%emt 0:03:19]} 7. Bb2 {[%emt 0:01:24]} Qc8 {[%emt 0:00:46]} 8. Re1 {[%emt 0:01:58]} Bh3 {[%emt 0:03:35]} 9. Bh1 {[%emt 0:01:20]} h5 {[%emt 0:00:08]} 10. Nbd2 {[%emt 0:10:10]} h4 {[%emt 0:00:26]} 11. e4 {[%emt 0:05:28]} hxg3 {[%emt 0:01:04]} 12. fxg3 {[%emt 0:00:09]} Ng4 {[%emt 0:09:34]} 13. Qe2 {[%emt 0:02:40]} Qc7 {[%emt 0:07:52]} 14. exd5 {[%emt 0:08:40]} cxd5 {[%emt 0:00:37]} 15. Ng5 {[%emt 0:07:51]} Nxh2 {[%emt 0:08:20]} 16. Qxh2 {[%emt 0:02:45]} Bg4 {[%emt 0:00:59]} 17. Qf2 {[%emt 0:00:14]} Bf6 {[%emt 0:06:14]} 18. Qxf6 {[%emt 0:09:26]} Qxg3+ {[%emt 0:03:02]} 19. Bg2 {[%emt 0:00:12]} Qh2+ {[%emt 0:00:10]} 20. Kf1 {[%emt 0:00:21]} Nc6 {[%emt 0:00:28]} 21. Qxf7+ {[%emt 0:02:11]} Kd7 {[%emt 0:00:34]} 22. Qxd5+ {[%emt 0:01:57]} Ke8 {[%emt 0:15:28]} 23. Qf7+ {[%emt 0:01:07]} Kd7 {[%emt 0:00:37]} 24. d5 {[%emt 0:08:26]} Raf8 {[%emt 0:01:29]} 25. dxc6+ {[%emt 0:00:07]} bxc6 {[%emt 0:08:54]} 26. Rxe7+ {[%emt 0:04:01]} Kc8 {[%emt 0:02:30]} 27. Be5 {[%emt 0:03:51]} Qh4 {[%emt 0:05:46]} 28. Rc7+ {[%emt 0:00:31]} Kb8 {[%emt 0:03:47]} 29. Rxc6+ {[%emt 0:00:10]} Ka8 {[%emt 0:00:06]} 30. Rc8# {[%emt 0:00:06]} 1-0